bitfinex/quotes_ETHUSD_20220731
["timestamp","ask_amount","ask_price","bid_price","bid_amount"]
[1659241845429,2.89804672,1705.6,1705.0,7.8979]
[1659241845826,2.89804672,1705.6,1705.0,15.3979]
[1659241846215,6.54804672,1705.7,1705.0,15.3979]
[1659241846416,6.49804672,1705.7,1705.0,15.74261435]
[1659241846924,10.01353848,1705.7,1705.0,15.74261435]
[1659241847099,10.01353848,1705.7,1704.9,0.05]
[1659241847100,6.41353848,1705.6,1704.9,0.05]
[1659241847303,9.41353848,1705.5,1704.8,0.05]
[1659241847516,3.33824672,1705.4,1704.7,7.55]
[1659241847702,2.89804672,1705.3,1704.7,7.5]
[1659241847927,0.3,1705.2,1704.7,7.5]
[1659241848551,1.0902,1705.4,1704.7,7.5]
[1659241848776,3.93824672,1705.4,1704.7,7.5]
[1659241849073,4.3988573,1705.4,1704.7,7.5]
[1659241849279,4.3988573,1705.4,1704.6,0.05]
[1659241849280,0.46061058,1705.1,1704.6,0.05]
[1659241849481,0.4403,1705.0,1704.4,0.05]
[1659241849686,0.7403,1705.0,1704.4,2.89804672]
[1659241850385,0.3,1705.0,1704.4,10.39804672]
[1659241850540,3.7403,1705.1,1704.4,10.39804672]
[1659241850541,4.0403,1705.1,1704.4,2.89804672]
[1659241850885,4.0403,1705.1,1704.0,0.3]
[1659241850886,8.0,1704.5,1704.0,0.3]
[1659241851196,3.33854672,1704.4,1704.0,0.3]
[1659241851345,2.89804672,1704.4,1704.0,0.3]
[1659241851545,3.19804672,1704.4,1704.0,0.3]
[1659241851996,14.379,1704.6,1704.0,0.3]
[1659241852196,0.3,1704.4,1704.0,0.3]
[1659241852510,14.13664672,1704.6,1704.0,0.3]
[1659241853804,3.0,1704.5,1704.0,0.3]
[1659241855097,3.4405,1704.5,1704.0,0.3]
[1659241855536,2.89804672,1704.4,1704.0,0.31342953]
[1659241855739,3.7405,1704.3,1704.0,0.31342953]
[1659241855959,2.89804672,1704.2,1704.0,0.31342953]
[1659241856114,12.63864672,1704.1,1703.7,0.00296251]
[1659241856452,6.19804672,1704.0,1703.4,0.05]
[1659241856762,6.19804672,1704.0,1703.2,0.05]
[1659241856763,3.63864672,1703.9,1703.2,0.05]
[1659241856910,3.63864672,1703.9,1703.1,7.55]
[1659241856911,5.89804672,1703.8,1703.1,7.55]
[1659241857111,0.7906,1703.9,1703.1,10.74276107]
[1659241857326,3.24804672,1703.9,1703.2,0.4408]
[1659241857553,3.19804672,1703.9,1703.4,7.5]
[1659241857849,3.19804672,1703.9,1703.2,0.4908]
[1659241858077,3.19804672,1703.9,1703.2,0.4408]
[1659241858239,3.19804672,1703.9,1703.2,7.9408]
[1659241858409,3.19804672,1703.9,1703.2,7.5]
[1659241858848,3.19804672,1703.9,1703.1,3.73356107]
[1659241859028,3.24804672,1703.9,1703.1,3.68356107]
[1659241859246,3.24804672,1703.9,1703.2,7.5]
[1659241859247,3.19804672,1703.8,1703.2,7.5]
[1659241859756,3.19804672,1703.8,1703.1,0.78551435]
[1659241859963,3.19804672,1703.7,1703.1,0.78551435]
[1659241860111,3.19804672,1703.7,1703.2,0.00296352]
[1659241860736,2.89804672,1703.6,1703.2,0.00296352]
[1659241860950,3.19804672,1703.6,1703.1,0.34471435]
[1659241862239,3.19804672,1703.6,1703.1,7.84471435]
[1659241862427,0.3,1703.6,1703.1,11.14600921]
[1659241862610,6.65,1703.8,1703.1,11.58680921]
[1659241862809,9.49804672,1703.8,1703.1,11.58680921]
[1659241863051,3.6,1703.8,1703.2,2.89804672]
[1659241863265,3.6,1703.8,1703.3,0.34471435]
[1659241863424,2.89804672,1703.7,1703.3,0.34471435]
[1659241863627,4.0406,1703.8,1703.1,7.5]
[1659241863827,2.89804672,1703.7,1703.0,8.6506]
[1659241864021,3.65,1703.8,1703.1,2.89804672]
[1659241864222,3.6,1703.8,1703.1,6.20069782]
[1659241864421,3.6,1703.8,1703.2,7.5]
[1659241864928,0.6,1703.8,1703.2,0.34471435]
[1659241865125,0.3,1703.8,1703.2,7.84471435]
[1659241865343,3.8949,1703.9,1703.2,7.84471435]
[1659241865542,2.89804672,1703.8,1703.2,0.34471435]
[1659241865745,2.89804672,1703.8,1703.2,0.34698086]
[1659241866643,2.89804672,1703.8,1703.2,0.34471435]
[1659241867028,3.33864672,1703.8,1703.2,0.00226651]
[1659241867231,2.89804672,1703.7,1703.2,0.00226651]
[1659241867443,3.49804672,1703.7,1703.2,0.00226651]
[1659241867739,3.19804672,1703.6,1703.2,0.00226651]
[1659241867943,3.19804672,1703.6,1703.0,8.6006]
[1659241868346,3.19804672,1703.6,1703.0,8.1598]
[1659241868728,3.19804672,1703.6,1703.0,8.16206677]
[1659241869167,3.19804672,1703.6,1703.0,8.50678112]
[1659241869536,3.19804672,1703.6,1703.0,8.50451435]
[1659241870078,3.19804672,1703.6,1703.0,8.50697953]
[1659241870447,0.3,1703.6,1703.2,7.5]
[1659241870706,3.4406,1703.8,1703.2,7.5]
[1659241870707,3.6,1703.8,1703.2,7.84471435]
[1659241871024,0.6,1703.8,1703.2,7.84471435]
[1659241871318,3.8949,1703.9,1703.3,7.5]
[1659241871477,3.8449,1703.9,1703.3,7.5]
[1659241872476,6.8449,1703.9,1703.3,7.9408]
[1659241872695,6.2449,1703.9,1703.3,7.94326475]
[1659241872909,6.2449,1703.9,1703.3,0.44326475]
[1659241873118,2.89804672,1703.8,1703.3,0.00246475]
[1659241873276,5.5,1703.7,1703.2,7.7471791]
[1659241873621,8.39804672,1703.7,1703.2,0.2471791]
[1659241874180,8.39804672,1703.7,1703.0,8.6506]
[1659241874181,8.99804672,1703.7,1703.0,8.6506]
[1659241874448,8.99804672,1703.7,1703.0,8.6006]
[1659241874796,3.49804672,1703.7,1703.0,8.6006]
[1659241875001,3.49804672,1703.7,1703.1,7.5]
[1659241875186,3.49804672,1703.7,1703.0,8.6006]
[1659241875394,3.49804672,1703.7,1703.2,7.5]
[1659241875921,3.49804672,1703.7,1703.1,7.5]
[1659241876574,3.0,1703.6,1703.0,8.1598]
[1659241876778,3.09753525,1703.6,1703.0,8.1598]
[1659241877020,3.09753525,1703.6,1703.2,7.5]
[1659241877222,3.09753525,1703.6,1703.0,8.4069791]
[1659241877381,3.09753525,1703.6,1702.9,3.3573]
[1659241877382,2.89804672,1703.5,1702.8,6.1278]
[1659241877580,2.89804672,1703.5,1702.8,6.0778]
[1659241877581,7.19848593,1703.4,1702.8,6.0778]
[1659241877792,7.19848593,1703.4,1702.6,7.6569]
[1659241877793,2.89804672,1703.3,1702.6,7.6569]
[1659241877991,3.3,1703.2,1702.8,0.00291486]
[1659241878194,0.09753525,1703.1,1702.8,0.00291486]
[1659241879127,0.09753525,1703.1,1702.6,7.5]
[1659241879300,0.09753525,1703.1,1702.6,10.64522582]
[1659241879502,0.09753525,1703.1,1702.9,7.5]
[1659241879689,0.3,1703.2,1702.9,7.5]
[1659241879892,0.6,1703.3,1702.9,7.5]
[1659241880091,3.3,1703.3,1702.9,7.5]
[1659241880828,0.05,1703.5,1702.8,0.6880791]
[1659241880829,0.05,1703.5,1703.2,7.5]
[1659241881030,0.4406,1703.9,1703.2,7.5]
[1659241881031,0.05,1703.8,1703.3,0.4408]
[1659241881189,7.658,1704.0,1703.2,3.33884672]
[1659241881593,0.09753525,1703.9,1703.4,7.5]
[1659241881791,0.09753525,1703.9,1703.2,13.75384672]
[1659241882110,0.09753525,1703.9,1703.2,5.76304672]
[1659241882499,6.59753525,1703.9,1703.2,6.01022582]
[1659241882928,6.59753525,1703.9,1703.2,6.45102582]
[1659241883248,7.19753525,1703.9,1703.2,6.45102582]
[1659241883913,7.19753525,1703.9,1703.2,13.95102582]
[1659241884320,7.19753525,1703.9,1703.2,6.45102582]
[1659241884501,7.19753525,1703.9,1703.2,13.95102582]
[1659241885136,7.19753525,1703.9,1703.2,6.45102582]
[1659241886063,0.39753525,1703.9,1703.2,6.40102582]
[1659241886268,3.39753525,1703.9,1703.2,11.0529791]
[1659241887042,6.29558197,1703.9,1703.2,11.0529791]
[1659241887334,6.73618197,1703.9,1703.2,10.6121791]
[1659241887537,2.89804672,1703.8,1703.2,3.1121791]
[1659241887741,3.19804672,1703.8,1703.2,3.1121791]
[1659241887958,2.89804672,1703.7,1703.2,0.2471791]
[1659241888142,3.19804672,1703.7,1703.0,0.05]
[1659241888345,3.19804672,1703.7,1702.9,18.68535541]
[1659241888346,2.89804672,1703.6,1702.9,18.68535541]
[1659241888536,3.0,1703.5,1702.9,11.13535541]
[1659241888876,6.63874672,1703.5,1702.9,11.13535541]
[1659241889061,6.63874672,1703.5,1702.9,7.95285541]
[1659241889438,3.19804672,1703.4,1702.9,15.45285541]
[1659241889640,3.49804672,1703.4,1702.9,7.95285541]
[1659241890162,0.3,1703.4,1703.0,7.5]
[1659241890343,3.6,1703.5,1703.0,7.5]
[1659241890684,3.49804672,1703.5,1703.0,7.5]
[1659241890975,3.3,1703.4,1703.0,7.5]
[1659241892376,3.3,1703.4,1702.9,7.95285541]
[1659241892549,3.3,1703.4,1702.9,7.94976494]
[1659241894493,6.19804672,1703.4,1702.9,7.94976494]
[1659241894690,2.89804672,1703.3,1702.9,7.94976494]
[1659241894859,6.6989974,1703.3,1702.8,2.84731486]
[1659241895064,3.19804672,1703.3,1702.8,0.00291486]
[1659241895462,3.19804672,1703.3,1702.6,7.9909]
[1659241895658,3.50095068,1703.2,1702.6,8.1880791]
[1659241895873,3.50095068,1703.2,1702.7,0.002915]
[1659241895874,2.89804672,1703.1,1702.7,0.002915]
[1659241896198,3.0,1703.0,1702.7,0.002915]
[1659241896407,3.49804672,1702.9,1702.7,0.002915]
[1659241896698,3.49804672,1702.9,1702.4,2.9435]
[1659241897058,3.49804672,1702.9,1702.3,7.5]
[1659241898274,0.09753525,1702.8,1702.3,7.5]
[1659241898496,3.19804672,1702.7,1702.1,0.05]
[1659241898701,17.6543974,1702.6,1701.9,0.05]
[1659241899000,9.49653265,1702.5,1701.8,0.05]
[1659241899163,9.49653265,1702.5,1701.7,15.5881]
[1659241899164,7.1399974,1702.4,1701.7,15.6381]
[1659241899363,2.89804672,1702.3,1701.7,15.8352791]
[1659241899564,0.05,1702.4,1701.9,7.5]
[1659241899799,0.3,1702.3,1702.0,7.5]
[1659241900206,3.69753525,1702.5,1702.0,7.5]
[1659241900358,2.89804672,1702.4,1701.9,0.2471791]
[1659241900962,2.89804672,1702.4,1701.9,0.25009547]
[1659241902019,2.89804672,1702.4,1701.9,0.2471791]
[1659241902218,7.39804672,1702.4,1701.7,15.6381]
[1659241902434,7.39804672,1702.4,1701.8,0.00291654]
[1659241903094,7.39804672,1702.4,1701.8,2.90096326]
[1659241903095,4.5,1702.4,1701.8,2.90096326]
[1659241903294,4.5,1702.4,1702.0,7.5]
[1659241904111,7.39804672,1702.4,1701.9,0.2471791]
[1659241904311,7.83904672,1702.4,1701.9,0.2471791]
[1659241904518,7.83904672,1702.4,1702.0,7.5]
[1659241904519,4.5,1702.4,1702.0,7.5]
[1659241904759,4.5,1702.4,1701.9,3.55254604]
[1659241905082,4.5,1702.4,1702.0,7.5]
[1659241906124,4.5,1702.4,1701.9,11.25254604]
[1659241906543,4.5,1702.4,1701.9,3.75254604]
[1659241906737,4.5,1702.4,1701.9,11.25254604]
[1659241907139,4.5,1702.4,1701.9,3.75254604]
[1659241907565,0.09753525,1702.3,1702.0,7.5]
[1659241907766,0.09753525,1702.3,1701.9,3.75254604]
[1659241907981,0.09753525,1702.3,1702.1,7.5]
[1659241908893,0.09753525,1702.3,1701.9,3.75254604]
[1659241909204,0.05,1702.5,1702.2,7.5]
[1659241909392,0.05,1702.8,1702.4,7.5]
[1659241909581,0.4908,1703.0,1702.4,7.5]
[1659241909891,3.33884672,1703.0,1702.4,7.5]
[1659241910052,2.89804672,1703.0,1702.4,7.5]
[1659241910498,3.19804672,1703.0,1702.4,7.5]
[1659241910681,3.0,1702.9,1702.4,7.5]
[1659241911306,3.0,1702.9,1702.4,7.5025564]
[1659241911463,3.6,1703.0,1702.4,7.5025564]
[1659241912115,3.6,1703.0,1702.4,7.5]
[1659241912905,3.69753525,1703.0,1702.4,7.5]
[1659241913560,6.59558197,1703.0,1702.4,7.5]
[1659241915405,2.89804672,1702.9,1702.4,7.5]
[1659241915567,3.6,1702.8,1702.4,7.5]
[1659241915766,6.49804672,1702.8,1702.4,7.5]
[1659241916598,6.49804672,1702.8,1702.4,7.49755372]
[1659241918643,6.49804672,1702.8,1702.3,7.76054269]
[1659241919139,6.49804672,1702.8,1702.3,15.25593282]
[1659241919323,0.09753525,1702.7,1702.3,15.25593282]
[1659241920592,0.09753525,1702.7,1702.3,7.7583791]
[1659241920793,0.09753525,1702.7,1702.4,7.49755372]
[1659241921644,0.09753525,1702.7,1701.0,7.72033171]
[1659241921645,3.534,1702.4,1701.0,7.72033171]
[1659241921847,1.22341648,1701.8,1701.0,10.7761]
[1659241922018,6.39804672,1701.7,1701.0,18.27365372]
[1659241922350,9.69804672,1701.6,1701.0,10.7761]
[1659241922522,6.49804672,1701.6,1701.0,10.7761]
[1659241922841,6.49804672,1701.6,1701.1,3.30672653]
[1659241923462,3.19804672,1701.6,1701.1,10.80428025]
[1659241923671,0.05,1701.8,1701.5,7.49755372]
[1659241923825,0.05,1702.1,1701.7,7.49755372]
[1659241924026,0.05,1702.1,1701.3,3.5]
[1659241924027,2.89804672,1702.1,1701.4,0.25]
[1659241924225,9.035,1702.3,1701.4,0.25]
[1659241924226,2.94804672,1702.2,1701.5,0.0258585]
[1659241924484,2.89804672,1702.2,1701.5,0.0258585]
[1659241924628,2.89804672,1702.2,1701.5,7.52341222]
[1659241925027,2.89804672,1702.2,1701.5,0.0258585]
[1659241925226,0.05,1702.3,1701.7,0.2]
[1659241925480,3.3225,1702.4,1702.1,7.49755372]
[1659241925630,2.89804672,1702.4,1702.1,7.49755372]
[1659241926329,3.19804672,1702.4,1702.1,7.49755372]
[1659241926523,3.49804672,1702.4,1702.1,7.49755372]
[1659241926725,3.49804672,1702.4,1701.9,7.50047009]
[1659241926726,0.6,1702.4,1701.9,7.50047009]
[1659241926926,3.94471435,1702.5,1702.1,7.49755372]
[1659241927555,0.05,1702.7,1702.2,0.441]
[1659241927754,0.05,1702.9,1702.6,10.80156218]
[1659241927926,0.4908,1703.2,1702.6,10.80156218]
[1659241928126,0.34471435,1703.2,1702.6,10.80156218]
[1659241928358,0.34471435,1703.2,1702.6,7.49755372]
[1659241928580,0.34471435,1703.2,1702.5,7.49755372]
[1659241928731,0.34471435,1703.2,1702.4,0.05]
[1659241928732,0.34471435,1703.2,1702.4,7.54755372]
[1659241928935,2.89804672,1703.1,1702.5,7.49755372]
[1659241929154,0.34471435,1703.0,1702.5,7.49755372]
[1659241929354,2.89804672,1702.9,1702.3,0.05]
[1659241929557,3.19804672,1702.9,1702.2,13.15535372]
[1659241929742,2.89804672,1702.8,1702.2,13.15535372]
[1659241930053,3.19804672,1702.8,1702.2,13.15535372]
[1659241930252,0.82598436,1702.9,1702.2,12.25584672]
[1659241930532,2.8546,1703.3,1702.8,7.49755372]
[1659241930533,0.05,1703.0,1702.8,7.49755372]
[1659241930730,0.34471435,1703.2,1702.8,7.49755372]
[1659241930979,2.89804672,1703.1,1702.8,7.49755372]
[1659241931537,2.89804672,1703.1,1702.5,7.9716]
[1659241931763,3.49804672,1703.1,1702.7,7.49755372]
[1659241931971,3.49804672,1703.1,1702.5,7.9216]
[1659241932184,3.49804672,1703.1,1702.7,7.49755372]
[1659241932740,0.34471435,1703.2,1702.5,7.9216]
[1659241932941,2.8546,1703.3,1703.1,7.49755372]
[1659241932942,0.05,1703.3,1703.1,7.49755372]
[1659241933152,4.2397,1703.6,1702.7,3.5]
[1659241933153,0.05,1703.6,1703.2,7.49755372]
[1659241933385,10.4131,1703.8,1703.2,7.49755372]
[1659241933962,10.4131,1703.8,1703.0,0.05]
[1659241934194,10.87371058,1703.8,1703.2,7.49755372]
[1659241934356,10.87371058,1703.8,1703.0,7.7021]
[1659241934357,10.4131,1703.8,1703.0,7.7021]
[1659241934559,10.4131,1703.8,1703.5,7.49755372]
[1659241934763,7.6075,1703.8,1703.5,7.49755372]
[1659241935105,11.5,1704.0,1703.5,7.49755372]
[1659241935255,14.39804672,1704.0,1703.5,7.49755372]
[1659241935656,14.39804672,1704.0,1703.3,0.05]
[1659241935855,14.39804672,1704.0,1703.5,7.49755372]
[1659241936055,14.69804672,1704.0,1703.5,7.49755372]
[1659241936271,14.99804672,1704.0,1703.5,7.49755372]
[1659241936496,12.1,1704.0,1703.7,7.49755372]
[1659241936886,14.99804672,1704.0,1703.7,7.49755372]
[1659241937091,14.99804672,1704.0,1703.4,0.05]
[1659241937288,2.89804672,1703.9,1703.5,7.49755372]
[1659241937597,3.24276107,1703.9,1703.5,7.49755372]
[1659241937809,2.89804672,1703.8,1703.5,7.49755372]
[1659241937975,3.19804672,1703.8,1703.5,7.49755372]
[1659241938302,3.49804672,1703.8,1703.5,7.49755372]
[1659241939391,0.6,1703.8,1703.5,7.49755372]
[1659241939591,0.64471435,1703.9,1703.4,0.2]
[1659241939803,0.64471435,1703.9,1703.6,7.49755372]
[1659241940591,0.64471435,1703.9,1703.5,3.30245728]
[1659241940818,3.54276107,1703.9,1703.5,3.30245728]
[1659241941020,3.54276107,1703.9,1703.4,0.2]
[1659241941021,3.19804672,1703.8,1703.4,0.2]
[1659241942839,3.19804672,1703.8,1703.3,7.49755372]
[1659241943817,3.19804672,1703.8,1703.2,3.0771]
[1659241944034,3.19804672,1703.8,1703.3,7.49755372]
[1659241944441,3.19804672,1703.8,1703.2,10.37465372]
[1659241944603,3.19804672,1703.8,1703.2,2.8771]
[1659241944805,2.89804672,1703.7,1703.2,2.8771]
[1659241945030,2.89804672,1703.7,1703.2,10.37465372]
[1659241945229,3.19804672,1703.7,1703.2,2.8771]
[1659241945435,3.19804672,1703.6,1703.0,7.7021]
[1659241945618,0.35,1703.7,1703.4,7.49755372]
[1659241945821,3.19804672,1703.7,1703.4,7.49755372]
[1659241946044,0.3,1703.7,1703.4,7.49755372]
[1659241946367,3.3,1703.8,1703.4,7.49755372]
[1659241946578,6.49804672,1703.8,1703.4,7.49530283]
[1659241946732,2.89804672,1703.7,1703.2,7.49530283]
[1659241946933,3.19804672,1703.7,1703.2,7.49530283]
[1659241947131,3.19804672,1703.7,1703.0,8.1429]
[1659241947364,3.19804672,1703.7,1703.0,8.0929]
[1659241947574,3.19804672,1703.7,1703.1,7.49530283]
[1659241947936,3.19804672,1703.7,1703.2,7.49530283]
[1659241948140,3.19804672,1703.7,1703.4,7.49530283]
[1659241948368,3.19804672,1703.7,1703.1,0.05]
[1659241948635,3.19804672,1703.7,1703.0,15.58820283]
[1659241948857,3.19804672,1703.7,1703.0,8.0929]
[1659241949058,0.34471435,1703.6,1703.0,8.0929]
[1659241949446,0.34471435,1703.6,1703.0,7.6521]
[1659241950039,0.29471435,1703.6,1703.0,7.6521]
[1659241950471,0.29471435,1703.6,1703.1,7.49530283]
[1659241951044,0.29471435,1703.6,1703.4,7.49530283]
[1659241951538,0.29471435,1703.6,1703.3,7.49530283]
[1659241952150,0.29471435,1703.6,1703.0,7.7550693]
[1659241952351,0.29471435,1703.6,1703.2,7.49530283]
[1659241952764,0.29471435,1703.6,1703.0,7.7050693]
[1659241953591,0.29471435,1703.6,1703.0,15.20037213]
[1659241953754,0.29471435,1703.6,1703.0,7.7050693]
[1659241953954,0.29471435,1703.6,1703.0,7.6521]
[1659241953955,3.49804672,1703.5,1703.0,7.6521]
[1659241954154,0.7907,1703.7,1703.0,7.49530283]
[1659241954370,3.19804672,1703.7,1703.0,0.4408]
[1659241954594,3.19804672,1703.7,1703.4,7.49530283]
[1659241954808,3.49804672,1703.7,1703.4,7.49530283]
[1659241955588,0.05,1704.0,1703.4,7.49530283]
[1659241955804,0.4406,1704.1,1703.2,0.04999999]
[1659241955805,8.025,1704.2,1703.7,7.49530283]
[1659241955951,2.89804672,1704.1,1703.7,7.49530283]
[1659241956152,2.89804672,1704.1,1703.6,3.30206972]
[1659241957555,0.29471435,1704.0,1703.5,7.49530283]
[1659241957756,3.19276107,1704.0,1703.5,7.49530283]
[1659241958061,3.49276107,1704.0,1703.5,7.49530283]
[1659241958488,3.19804672,1703.9,1703.3,7.54530283]
[1659241958714,3.19276107,1703.8,1703.5,7.49530283]
[1659241958888,3.49276107,1703.8,1703.5,7.49530283]
[1659241959500,3.49276107,1703.8,1703.2,15.66290283]
[1659241959817,3.49276107,1703.8,1703.2,7.6534985]
[1659241960177,3.49276107,1703.8,1703.3,7.49530283]
[1659241960596,3.49276107,1703.8,1703.5,7.49530283]
[1659241960804,3.49276107,1703.8,1703.3,0.04999999]
[1659241961008,3.49276107,1703.8,1703.3,7.54530282]
[1659241961459,3.49276107,1703.8,1703.5,7.49530283]
[1659241961947,0.59471435,1703.8,1703.5,7.49530283]
[1659241962344,0.29471435,1703.8,1703.5,7.49530283]
[1659241963206,0.29471435,1703.8,1703.3,0.04999999]
[1659241963664,0.29471435,1703.8,1703.3,7.54530282]
[1659241963806,0.29471435,1703.8,1703.3,0.04999999]
[1659241964308,0.29471435,1703.8,1703.4,7.49530283]
[1659241965117,3.19276107,1703.8,1703.4,7.49530283]
[1659241965528,3.19276107,1703.8,1703.3,0.04999999]
[1659241965728,3.79276107,1703.8,1703.3,0.04999999]
[1659241965959,2.89804672,1703.7,1703.3,0.04999999]
[1659241966119,3.19804672,1703.7,1703.3,0.04999999]
[1659241966322,2.89804672,1703.7,1703.3,0.04999999]
[1659241966521,3.79276107,1703.8,1703.5,7.49530283]
[1659241966943,0.89471435,1703.8,1703.5,7.49530283]
[1659241967661,0.59471435,1703.8,1703.5,7.49530283]
[1659241967817,0.29471435,1703.8,1703.5,7.49530283]
[1659241968018,0.29471435,1703.8,1703.3,0.04999999]
[1659241968019,0.59471435,1703.8,1703.3,0.04999999]
[1659241968331,0.29471435,1703.8,1703.3,0.04999999]
[1659241968749,0.29471435,1703.8,1703.3,7.54530282]
[1659241968943,0.05,1704.0,1703.6,7.49530283]
[1659241969279,7.5345,1704.2,1703.4,12.29068545]
[1659241969280,0.05,1704.2,1703.9,7.49530283]
[1659241969436,0.05,1704.5,1704.1,10.79640403]
[1659241969635,3.1213,1704.6,1704.1,10.79640403]
[1659241969878,3.8125,1704.8,1704.3,7.49530283]
[1659241970068,3.3221,1704.8,1704.4,7.49530283]
[1659241970232,3.2648,1704.9,1704.4,7.49530283]
[1659241970437,1.4403,1705.0,1704.4,7.54530282]
[1659241970875,1.0,1705.0,1704.4,7.54530282]
[1659241971282,4.6,1705.0,1704.4,7.54530282]
[1659241971455,3.19804672,1704.9,1704.4,7.54530282]
[1659241972147,0.3,1704.9,1704.4,7.54530282]
[1659241972346,4.0,1705.0,1704.4,7.98580282]
[1659241972563,0.05,1705.2,1704.8,7.49530283]
[1659241972779,6.08044211,1705.3,1705.1,7.49530283]
[1659241972780,0.46424211,1705.3,1705.1,7.49530283]
[1659241972946,0.46424211,1705.3,1705.1,10.79427528]
[1659241972947,0.00363153,1705.3,1705.1,10.79427528]
[1659241973146,0.00363153,1705.3,1705.2,7.49530283]
[1659241973347,8.02991058,1705.7,1705.1,3.29897245]
[1659241973596,8.27462493,1705.7,1705.1,3.29897245]
[1659241973756,0.46061058,1705.6,1705.0,0.04999999]
[1659241974103,0.46061058,1705.6,1704.8,0.05]
[1659241974104,2.78751807,1705.5,1704.8,0.05]
[1659241974274,2.78751807,1705.5,1704.5,0.4405]
[1659241974275,0.46061058,1705.3,1704.7,0.05]
[1659241974444,0.46061058,1705.3,1704.5,7.49530283]
[1659241974445,0.4403,1705.2,1704.6,7.49530283]
[1659241974846,0.4403,1705.2,1704.4,0.05]
[1659241975147,0.29471435,1705.1,1704.6,7.49530283]
[1659241975347,0.76061058,1705.0,1704.6,7.49530283]
[1659241975575,3.6586573,1705.0,1704.6,7.49530283]
[1659241975901,3.95657928,1705.0,1704.6,7.49530283]
[1659241976198,3.4959687,1705.0,1704.3,9.6332]
[1659241976409,3.95657928,1705.0,1704.6,7.49530283]
[1659241976574,3.4959687,1705.0,1704.6,7.49530283]
[1659241976775,3.95657928,1705.0,1704.6,7.49530283]
[1659241976984,1.05853256,1705.0,1704.6,7.49530283]
[1659241977686,1.05853256,1705.0,1704.4,0.04999999]
[1659241978005,0.59792198,1705.0,1704.4,0.04999999]
[1659241978164,0.29792198,1705.0,1704.7,7.49530283]
[1659241978368,0.29471435,1705.1,1704.9,7.49530283]
[1659241978764,0.29471435,1705.1,1704.7,0.2]
[1659241978984,0.29471435,1705.1,1704.9,7.49530283]
[1659241979660,0.29471435,1705.1,1704.7,0.2]
[1659241979860,0.29471435,1705.1,1705.0,0.2]
[1659241981663,0.3,1705.3,1705.0,0.2]
[1659241981863,3.6034299,1705.4,1705.0,0.2]
[1659241982098,6.50147662,1705.4,1705.0,0.2]
[1659241982278,6.49804672,1705.4,1705.0,0.2]
[1659241985020,3.19276107,1705.3,1705.0,0.2]
[1659241985345,3.19276107,1705.3,1704.7,7.74530283]
[1659241985551,3.19276107,1705.3,1704.7,7.69530283]
[1659241985952,2.89804672,1705.2,1704.7,7.69530283]
[1659241986159,3.19804672,1705.2,1704.8,7.49530283]
[1659241986360,3.19804672,1705.2,1704.7,0.2]
[1659241986531,3.49276107,1705.1,1704.6,7.49530283]
[1659241986718,3.49276107,1705.1,1704.2,3.5]
[1659241986719,3.49276107,1705.1,1704.4,0.4905]
[1659241986911,3.49276107,1705.1,1704.4,0.4405]
[1659241987258,3.49276107,1705.1,1704.6,7.49530283]
[1659241988061,3.49276107,1705.1,1704.4,16.28790282]
[1659241988210,3.49276107,1705.1,1704.4,8.74259999]
[1659241988653,3.49276107,1705.1,1704.6,7.49530283]
[1659241989158,2.89804672,1705.0,1704.4,8.79259999]
[1659241989464,0.4403,1704.9,1704.2,0.05]
[1659241989637,0.4403,1704.9,1704.1,0.05]
[1659241989638,2.89804672,1704.8,1704.1,0.05]
[1659241989980,2.89804672,1704.8,1704.0,3.0777]
[1659241989981,3.0,1704.7,1704.0,3.1277]
[1659241990166,3.19804672,1704.6,1704.2,7.49530283]
[1659241990332,3.49804672,1704.6,1704.3,7.49530283]
[1659241991021,0.3,1704.6,1704.2,3.3011012]
[1659241991252,2.89804672,1704.5,1703.9,0.4906]
[1659241991455,3.0,1704.4,1703.8,13.3037]
[1659241991793,3.19804672,1704.3,1703.8,13.3037]
[1659241992088,0.3,1704.4,1704.1,7.69530283]
[1659241992250,3.2066,1704.6,1704.1,7.69530283]
[1659241992251,3.5066,1704.6,1704.1,7.49530283]
[1659241992453,6.40464672,1704.6,1704.1,7.49530283]
[1659241992652,3.49804672,1704.6,1704.1,7.49530283]
[1659241992852,3.49804672,1704.6,1704.3,7.49530283]
[1659241993089,3.49804672,1704.6,1704.1,0.05207683]
[1659241993894,0.29471435,1704.5,1704.1,7.54737966]
[1659241994198,0.29471435,1704.5,1703.9,0.4406]
[1659241994948,0.29471435,1704.5,1704.1,7.49530283]
[1659241996155,0.29471435,1704.5,1704.2,7.49530283]
[1659241996355,6.2609,1704.8,1704.3,0.2]
[1659241996599,9.70894672,1704.8,1704.4,7.49530283]
[1659241996756,2.89804672,1704.8,1704.4,7.49530283]
[1659241997149,2.89804672,1704.8,1704.3,0.2]
[1659241997351,2.89804672,1704.8,1704.4,7.49530283]
[1659241997599,10.93216107,1704.9,1704.4,7.49530283]
[1659241997793,10.93216107,1704.9,1704.5,7.49530283]
[1659241997794,9.49186107,1704.9,1704.5,7.49530283]
[1659241997967,3.79276107,1704.9,1704.5,7.49530283]
[1659241998165,0.89471435,1704.9,1704.5,7.49530283]
[1659241998499,0.59471435,1704.9,1704.6,7.49530283]
[1659241998707,0.29471435,1704.9,1704.3,11.25073036]
[1659241998854,0.29471435,1704.9,1704.7,7.49530283]
[1659241999058,0.29471435,1704.9,1704.5,0.0474042]
[1659241999271,0.29471435,1704.9,1704.5,7.49530283]
[1659241999499,0.29471435,1704.9,1704.4,3.118]
[1659241999665,0.29471435,1704.9,1704.5,7.49530283]
[1659241999868,0.29471435,1704.9,1704.4,3.16836977]
[1659242000073,0.29471435,1704.9,1704.6,7.49530283]
[1659242000772,0.29471435,1704.9,1704.4,3.16836977]
[1659242000970,0.29471435,1704.9,1704.5,7.49530283]
[1659242001213,0.29471435,1704.9,1704.4,3.16836977]
[1659242001359,0.29471435,1704.9,1704.7,7.49530283]
[1659242002755,0.29471435,1704.9,1704.5,7.49530283]
[1659242002756,3.19276107,1704.9,1704.5,7.49530283]
[1659242002955,3.49276107,1704.9,1704.5,7.49530283]
[1659242003390,3.49276107,1704.9,1704.4,3.16836977]
[1659242003391,3.79276107,1704.9,1704.4,3.16836977]
[1659242003596,3.79276107,1704.9,1704.4,0.05036977]